fUSD/lending_fUSD_20250818
["ID","MTS","AMOUNT","RATE_DAILY","PERIOD"]
[380036541,1755493842122,-500.0,0.00011795,2]
[380036542,1755493842133,-3454.0,0.00011795,2]
[380036543,1755493842147,-150.0,0.00011795,2]
[380036544,1755493842158,-1622.0,0.00011795,2]
[380036545,1755493842168,-150.0,0.00011795,2]
[380036546,1755493842179,-500.0,0.00011795,2]
[380036547,1755493842189,-500.0,0.00011795,2]
[380036548,1755493842206,-989.0,0.00011795,2]
[380036549,1755493842227,-474.0,0.00011795,2]
[380036550,1755493842238,-500.0,0.00011795,2]
[380036551,1755493842248,-500.0,0.00011795,2]
[380036552,1755493842258,-150.0,0.00011815,2]
[380036553,1755493842268,-500.0,0.00011815,2]
[380036554,1755493842278,-4000.0,0.00011821,2]
[380036555,1755493842289,-843.78711038,0.00011833,2]
[380036556,1755493842299,-160.0,0.00011833,2]
[380036557,1755493842308,-212.00699823,0.00011833,2]
[380036558,1755493842318,-458.40919931,0.00011833,2]
[380036559,1755493842329,-2351.0,0.00011864,2]
[380036560,1755493842338,-1000.0,0.000119,2]
[380036561,1755493842348,-1800.0,0.000119,4]
[380036562,1755493842358,-587.0,0.00011907,2]
[380036563,1755493842368,-255.0,0.00011934,2]
[380036564,1755493842378,-810.31,0.00011996,2]
[380036565,1755493842387,-1500.0,0.00012068,2]
[380036566,1755493842397,-1500.0,0.00012068,2]
[380036567,1755493842406,-1500.0,0.00012068,2]
[380036568,1755493842416,-1500.0,0.00012068,2]
[380036569,1755493842426,-1001.32047253,0.00012068,2]
[380036570,1755493842440,-1500.0,0.00012068,2]
[380036571,1755493842450,-622.70617468,0.00012068,2]
[380036572,1755493842460,-1148.45802481,0.00012068,2]
[380036573,1755493842470,-1500.0,0.00012068,2]
[380036574,1755493842480,-1230.72532415,0.00012068,2]
[380036575,1755493842491,-1500.0,0.00012068,2]
[380036576,1755493842501,-1000.80308435,0.00012068,2]
[380036577,1755493842510,-1500.0,0.00012068,2]
[380036578,1755493842520,-1493.97629918,0.00012068,2]
[380036579,1755493842530,-1500.0,0.00012068,2]
[380036580,1755493842540,-1500.0,0.00012068,2]
[380036581,1755493842549,-500.0,0.00012069,2]
[380036582,1755493842559,-507.52391232,0.00012069,2]
[380036583,1755493842569,-729.0,0.00012069,2]
[380036584,1755493842579,-500.0,0.00012069,2]
[380036585,1755493842589,-3454.0,0.00012069,2]
[380036586,1755493842599,-260.11500008,0.00012069,2]
[380036587,1755493842609,-1622.0,0.00012069,2]
[380036588,1755493842618,-158.44741976,0.00012069,2]
[380036589,1755493842628,-500.0,0.00012069,2]
[380036590,1755493842638,-500.0,0.00012069,2]
[380036591,1755493842648,-989.0,0.00012069,2]
[380036592,1755493842657,-474.0,0.00012069,2]
[380036593,1755493842667,-411.99813359,0.00012069,2]
[380036594,1755493842676,-151.0,0.00012088,2]
[380036595,1755493842686,-151.0,0.00012088,2]
[380036596,1755493842696,-151.0,0.00012088,2]
[380036597,1755493842706,-150.0,0.00012089,2]
[380036598,1755493842716,-500.0,0.00012089,2]
[380036599,1755493842726,-4000.0,0.00012095,2]
[380036600,1755493842735,-209.09956554,0.00012107,2]
[380036601,1755493842746,-250.0,0.0001211,2]
[380036602,1755493842756,-200.0,0.0001211,2]
[380036603,1755493842765,-251.0,0.0001211,2]
[380036604,1755493842775,-204.0,0.0001211,2]
[380036605,1755493842785,-200.0,0.0001211,2]
[380036606,1755493842794,-195.589,0.0001211,2]
[380036607,1755493842804,-178.482,0.0001211,2]
[380036608,1755493842814,-203.243,0.0001211,2]
[380036609,1755493842824,-201.232,0.0001211,2]
[380036610,1755493842833,-250.0,0.0001211,2]
[380036611,1755493842843,-250.0,0.0001211,2]
[380036612,1755493842854,-296.394,0.0001211,2]
[380036613,1755493842863,-245.888,0.0001211,2]
[380036614,1755493842873,-186.31,0.0001211,2]
[380036615,1755493842882,-206.999,0.0001211,2]
[380036616,1755493842892,-204.955,0.0001211,2]
[380036617,1755493842902,-250.0,0.0001211,2]
[380036618,1755493842911,-159.915,0.0001211,2]
[380036619,1755493842921,-154.0,0.0001211,2]
[380036620,1755493842930,-209.961,0.0001211,2]
[380036621,1755493842940,-157.387,0.0001211,2]
[380036622,1755493842950,-1255.476,0.0001211,2]
[380036623,1755493842959,-3371.0,0.0001211,2]
[380036624,1755493842969,-2029.0,0.0001211,2]
[380036625,1755493842980,-1323.375,0.0001211,2]
[380036626,1755493842992,-1656.0,0.0001211,2]
[380036627,1755493843009,-600.789,0.0001211,2]
[380036628,1755493843018,-574.962,0.0001211,2]
[380036629,1755493843028,-200.0,0.00012147,2]
[380036630,1755493843044,-2292.13927089,0.00012163,2]
[380036631,1755493843059,-257.91778498,0.00012163,2]
[380036632,1755493843069,-364.8173656,0.0001219,2]
[380036633,1755493843079,-255.0,0.0001219,2]
[380036634,1755493843088,-255.0,0.0001219,2]
[380036635,1755493843098,-341.24051972,0.0001219,2]
[380036636,1755493843107,-1085.0,0.00012206,2]
[380036637,1755493843117,-456.31,0.00012207,2]
[380036638,1755493843127,-152.0,0.00012219,3]
[380036640,1755493843138,-1000.0,0.00012273,2]
[380036641,1755493843153,-21000.93,0.000123,2]
[380036642,1755493843163,-1000.0,0.000123,2]
[380036643,1755493843173,-797.31,0.00012301,2]
[380036644,1755493843182,-500.0,0.00012343,2]
[380036645,1755493843192,-729.0,0.00012343,2]
[380036646,1755493843205,-500.0,0.00012343,2]
[380036647,1755493843215,-3454.0,0.00012343,2]
[380036648,1755493843224,-1622.0,0.00012343,2]
[380036649,1755493843235,-246.43321828,0.00012343,2]
[380036650,1755493843246,-500.0,0.00012343,2]
[380036651,1755493843257,-989.0,0.00012343,2]
[380036652,1755493843266,-474.0,0.00012343,2]
[380036653,1755493843276,-160.0,0.00012361,2]
[380036654,1755493843286,-311.1,0.00012361,2]
[380036655,1755493843296,-250.0,0.00012363,2]
[380036656,1755493843306,-500.0,0.00012363,2]
[380036657,1755493843315,-1233.16186344,0.00012369,2]
[380036658,1755493843325,-467.0,0.00012384,2]
[380036659,1755493843335,-150.0,0.00012399,2]
[380036660,1755493843344,-448330.91,0.000124,2]
[380036661,1755493843355,-171.5,0.000124,2]
[380036662,1755493843365,-152.0,0.00012425,4]
[380036663,1755493843374,-1000.0,0.000125,2]
[380036664,1755493843384,-4587.29519114,0.0001254,2]
[380036665,1755493843394,-200.0,0.00012558,2]
[380036666,1755493843404,-156.67,0.00012597,2]
[380036667,1755493843414,-1506.03200363,0.00012616,2]
[380036668,1755493843423,-2000.0,0.00012616,2]
[380036669,1755493843434,-1958.81343577,0.00012616,2]
[380036670,1755493843451,-2000.0,0.00012616,2]
[380036671,1755493843474,-1033.613245,0.00012616,2]
[380036672,1755493843502,-2000.0,0.00012616,2]
[380036673,1755493843513,-2000.0,0.00012616,2]
[380036674,1755493843523,-2000.0,0.00012616,2]
[380036675,1755493843533,-1629.90530145,0.00012616,2]
[380036676,1755493843542,-500.0,0.00012617,2]
[380036677,1755493843553,-729.0,0.00012617,2]
[380036678,1755493843563,-500.0,0.00012617,2]
[380036679,1755493843575,-3454.0,0.00012617,2]
[380036680,1755493843585,-1622.0,0.00012617,2]
[380036681,1755493843595,-500.0,0.00012617,2]
[380036682,1755493843605,-989.0,0.00012617,2]
[380036684,1755493843615,-474.0,0.00012617,2]
[380036685,1755493843626,-158.73,0.00012623,2]
[380036686,1755493843636,-152.0,0.00012632,5]
[380036687,1755493843646,-151.0,0.00012636,2]
[380036688,1755493843656,-151.0,0.00012636,2]
[380036689,1755493843666,-154.96619227,0.00012636,2]
[380036691,1755493843676,-500.0,0.00012637,2]
[380036692,1755493843686,-1000.0,0.000127,2]
[380036726,1755493844052,-1700.0,0.00012724,2]
[380036728,1755493844088,-1000.0,0.00012724,2]
[380036730,1755493844098,-2500.0,0.00012724,2]
[380036732,1755493844108,-41886.0,0.000128,2]
[380036734,1755493844117,-599.32890042,0.00012816,2]
[380036737,1755493844127,-152.0,0.00012838,6]
[380036739,1755493844137,-500.0,0.00012891,2]
[380036741,1755493844146,-729.0,0.00012891,2]
[380036743,1755493844157,-361.0,0.00012891,2]
[380036745,1755493844168,-3454.0,0.00012891,2]
[380036747,1755493844177,-1622.0,0.00012891,2]
[380036749,1755493844186,-500.0,0.00012891,2]
[380036751,1755493844196,-989.0,0.00012891,2]
[380036753,1755493844208,-474.0,0.00012891,2]
[380036755,1755493844217,-500.0,0.00012891,2]
[380036757,1755493844227,-500.0,0.00012891,2]
[380036759,1755493844236,-500.0,0.00012891,2]
[380036761,1755493844246,-500.0,0.00012891,2]
[380036763,1755493844256,-500.0,0.00012891,2]
[380036765,1755493844266,-500.0,0.00012891,2]
[380036767,1755493844276,-500.0,0.00012891,2]
[380036769,1755493844285,-500.0,0.00012891,2]
[380036771,1755493844294,-500.0,0.00012891,2]
[380036773,1755493844303,-299.99,0.00012893,2]
[380036775,1755493844312,-5729.58,0.00012893,2]
[380036777,1755493844321,-949.71,0.00012893,2]
[380036779,1755493844330,-150.99,0.00012893,2]
[380036781,1755493844340,-156.65,0.00012895,2]
[380036783,1755493844349,-167.15956208,0.000129,2]
[380036785,1755493844359,-366.11593967,0.00012911,2]
[380036787,1755493844369,-150.0,0.0001295,2]
[380036789,1755493844378,-468.62,0.00012962,2]
[380036791,1755493844387,-200.0,0.0001297,2]
[380036793,1755493844396,-505.0190699,0.00013,2]
[380036795,1755493844406,-218008.32272144,0.00013,2]
[380036797,1755493844415,-472.68698398,0.00013,2]
[380036799,1755493844424,-36595.0,0.00013,2]
[380036801,1755493844433,-152.0,0.00013044,7]
[380036803,1755493844443,-18135.44,0.00013047,6]
[380036805,1755493844452,-3292.0,0.0001305,2]
[380036807,1755493844461,-764.56586519,0.00013078,7]
[380036809,1755493844470,-433.0,0.00013078,2]
[380036811,1755493844480,-823.0,0.00013097,2]
[380036812,1755493844489,-2740997.7936504,0.00013098,2]
[380036813,1755493844498,-1000.0,0.000131,2]
[380036814,1755493844508,-200.0,0.00013156,2]
[380036815,1755493844518,-5404.91240497,0.0001316,2]
[380036816,1755493844527,-2041.4358324,0.00013164,2]
[380036817,1755493844536,-2500.0,0.00013164,2]
[380036818,1755493844545,-938.37625615,0.00013164,2]
[380036819,1755493844554,-2503.43822729,0.00013164,2]
[380036820,1755493844564,-2500.0,0.00013164,2]
[380036821,1755493844573,-500.0,0.00013165,2]
[380036822,1755493844582,-729.0,0.00013165,2]
[380036823,1755493844592,-3454.0,0.00013165,2]
[380036824,1755493844601,-1622.0,0.00013165,2]
[380036825,1755493844610,-500.0,0.00013165,2]
[380036826,1755493844620,-989.0,0.00013165,2]
[380036827,1755493844630,-474.0,0.00013165,2]
[380036828,1755493844641,-151.0,0.00013184,2]
[380036829,1755493844651,-151.0,0.00013184,2]
[380036830,1755493844663,-156.67,0.00013198,2]
[380036831,1755493844673,-5513.0,0.000132,3]
[380036832,1755493844682,-158.73,0.00013211,2]
[380036833,1755493844692,-152.0,0.0001325,8]
[380036834,1755493844701,-437.554,0.00013252,2]
[380036835,1755493844710,-7658.261,0.00013252,2]
[380036836,1755493844720,-150.0,0.00013297,2]
[380036837,1755493844730,-1000.0,0.000133,2]
[380036838,1755493844740,-200.0,0.00013347,2]
[380036839,1755493844749,-24913.43175592,0.00013368,2]
[380036840,1755493844759,-200.0,0.00013381,2]
[380036841,1755493844768,-20671.78890713,0.00013392,2]
[380036842,1755493844778,-1000.0,0.00013399,2]
[380036843,1755493844787,-1000.0,0.00013399,2]
[380036844,1755493844797,-8311.98,0.000134,2]
[380036845,1755493844806,-16752.62,0.000134,2]
[380036846,1755493844815,-47175.0,0.000134,2]
[380036847,1755493844825,-32843.48034833,0.000134,2]
[380036848,1755493844834,-75333.48486398,0.00013401,2]
[380036849,1755493844843,-20671.78890713,0.00013401,2]
[380036850,1755493844853,-18343.36028512,0.00013402,2]
[380036851,1755493844863,-295043.477659,0.00013405,2]
[380036852,1755493844873,-75333.48486398,0.00013409,2]
[380036853,1755493844882,-18343.36028512,0.0001341,2]
[380036854,1755493844892,-396.30584636,0.0001341,2]
[380036855,1755493844901,-594.62395557,0.0001341,2]
[380036856,1755493844910,-469.80803754,0.00013413,2]
[380036857,1755493844920,-18015.288663,0.00013414,2]
[380036858,1755493844929,-469.80803754,0.00013414,2]
[380036859,1755493844938,-75333.48486398,0.00013416,2]
[380036860,1755493844948,-32843.48034833,0.00013417,2]
[380036861,1755493844957,-18343.36028512,0.00013419,2]
[380036862,1755493844966,-75333.48486398,0.00013423,2]
[380036863,1755493844976,-1000.0,0.00013423,2]
[380036864,1755493844985,-1000.0,0.00013423,2]
[380036865,1755493844994,-1000.0,0.00013423,2]
[380036866,1755493845003,-1000.0,0.00013423,2]
[380036867,1755493845013,-1000.0,0.00013423,2]
[380036868,1755493845022,-1000.0,0.00013423,2]
[380036869,1755493845031,-1000.0,0.00013423,2]
[380036870,1755493845040,-1000.0,0.00013423,2]
[380036871,1755493845050,-1000.0,0.00013423,2]
[380036872,1755493845059,-1000.0,0.00013423,2]
[380036873,1755493845068,-1000.0,0.00013423,2]
[380036874,1755493845077,-1000.0,0.00013423,2]
[380036875,1755493845086,-1000.0,0.00013423,2]
[380036876,1755493845095,-1000.0,0.00013423,2]
[380036877,1755493845104,-1000.0,0.00013423,2]
[380036878,1755493845114,-1000.0,0.00013423,2]
[380036879,1755493845123,-1000.0,0.00013423,2]
[380036880,1755493845133,-1000.0,0.00013423,2]
[380036881,1755493845143,-1000.0,0.00013423,2]
[380036882,1755493845152,-1000.0,0.00013423,2]
[380036883,1755493845161,-1000.0,0.00013423,2]
[380036884,1755493845171,-1000.0,0.00013423,2]
[380036885,1755493845180,-1000.0,0.00013423,2]
[380036886,1755493845190,-1000.0,0.00013423,2]
[380036887,1755493845202,-1000.0,0.00013423,2]
[380036888,1755493845211,-1000.0,0.00013423,2]
[380036889,1755493845221,-1000.0,0.00013423,2]
[380036890,1755493845231,-1000.0,0.00013423,2]
[380036891,1755493845240,-1000.0,0.00013423,2]
[380036892,1755493845250,-1000.0,0.00013423,2]
[380036893,1755493845259,-1000.0,0.00013423,2]
[380036894,1755493845268,-1000.0,0.00013423,2]
[380036895,1755493845279,-1000.0,0.00013423,2]
[380036896,1755493845288,-1000.0,0.00013423,2]
[380036897,1755493845298,-1000.0,0.00013423,2]
[380036898,1755493845307,-1000.0,0.00013423,2]
[380036899,1755493845316,-1000.0,0.00013423,2]
[380036900,1755493845326,-1000.0,0.00013423,2]
[380036901,1755493845335,-1000.0,0.00013423,2]
[380036902,1755493845344,-1000.0,0.00013423,2]
[380036903,1755493845353,-1000.0,0.00013423,2]
[380036904,1755493845362,-1000.0,0.00013423,2]
[380036905,1755493845372,-1000.0,0.00013423,2]
[380036906,1755493845381,-1000.0,0.00013423,2]
[380036907,1755493845390,-1000.0,0.00013423,2]
[380036908,1755493845399,-1000.0,0.00013423,2]
[380036909,1755493845408,-1000.0,0.00013423,2]
[380036910,1755493845418,-1000.0,0.00013423,2]
[380036911,1755493845427,-1000.0,0.00013423,2]
[380036912,1755493845436,-1000.0,0.00013423,2]
[380036913,1755493845446,-1000.0,0.00013423,2]
[380036914,1755493845455,-1000.0,0.00013423,2]
[380036915,1755493845465,-1000.0,0.00013423,2]
[380036916,1755493845475,-1000.0,0.00013423,2]
[380036917,1755493845486,-1000.0,0.00013423,2]
[380036918,1755493845495,-1000.0,0.00013423,2]
[380036919,1755493845505,-1000.0,0.00013423,2]
[380036920,1755493845514,-1000.0,0.00013423,2]
[380036921,1755493845525,-1000.0,0.00013423,2]
[380036922,1755493845534,-1000.0,0.00013423,2]
[380036923,1755493845545,-1000.0,0.00013423,2]
[380036924,1755493845554,-1000.0,0.00013423,2]
[380036925,1755493845565,-1000.0,0.00013423,2]
[380036926,1755493845574,-1000.0,0.00013423,2]
[380036927,1755493845583,-1000.0,0.00013423,2]
[380036928,1755493845592,-1000.0,0.00013423,2]
[380036929,1755493845603,-1000.0,0.00013423,2]
[380036930,1755493845613,-1000.0,0.00013423,2]
[380036931,1755493845622,-1000.0,0.00013423,2]
[380036932,1755493845632,-1000.0,0.00013423,2]
[380036933,1755493845641,-1000.0,0.00013423,2]
[380036934,1755493845651,-1000.0,0.00013423,2]
[380036935,1755493845661,-1000.0,0.00013423,2]
[380036936,1755493845670,-1000.0,0.00013423,2]
[380036937,1755493845680,-1000.0,0.00013423,2]
[380036938,1755493845689,-1000.0,0.00013423,2]
[380036939,1755493845699,-1000.0,0.00013423,2]
[380036940,1755493845709,-1000.0,0.00013423,2]
[380036941,1755493845718,-1000.0,0.00013423,2]
[380036942,1755493845728,-1000.0,0.00013423,2]
[380036943,1755493845738,-1000.0,0.00013423,2]
[380036944,1755493845747,-1000.0,0.00013423,2]
[380036945,1755493845756,-1000.0,0.00013423,2]
[380036946,1755493845766,-1000.0,0.00013423,2]
[380036947,1755493845775,-1000.0,0.00013423,2]
[380036948,1755493845787,-1000.0,0.00013423,2]
[380036949,1755493845796,-1000.0,0.00013423,2]
[380036950,1755493845805,-1000.0,0.00013423,2]
[380036951,1755493845815,-1000.0,0.00013423,2]
[380036952,1755493845825,-1000.0,0.00013423,2]
[380036953,1755493845834,-1000.0,0.00013423,2]
[380036954,1755493845844,-1000.0,0.00013423,2]
[380036955,1755493845852,-283.26,0.00013425,2]
[380036956,1755493845862,-456.31,0.00013427,2]
[380036957,1755493845871,-295043.477659,0.00013427,2]
[380036958,1755493845881,-396.30584636,0.00013428,2]
[380036959,1755493845890,-20671.78890713,0.00013429,2]
[380036960,1755493845899,-1047.81838246,0.00013429,2]
[380036961,1755493845909,-18343.36028512,0.0001343,2]
[380036962,1755493845919,-295043.477659,0.00013432,2]
[380036963,1755493845928,-594.62395557,0.00013433,2]
[380036964,1755493845938,-18015.288663,0.00013434,2]
[380036965,1755493845947,-295043.477659,0.00013435,2]
[380036966,1755493845956,-29492.14094096,0.00013438,2]
[380036968,1755493847817,-151.0,0.00010973,2]
[380036969,1755493847832,-151.66450849,0.00010973,2]
[380036970,1755493847848,-171.62549151,0.00011678,2]
[380036971,1755493847876,-541.62445978,0.00011678,2]
[380036972,1755493847940,-363.10182611,9.724e-05,2]
[380036973,1755493847950,-3437.75004871,0.00011678,2]
[380036974,1755493847959,-500.0,0.00012069,2]
[380036975,1755493847968,-500.0,0.00012343,2]
[380036976,1755493847977,-500.0,0.00012617,2]
[380036977,1755493847987,-500.0,0.00012891,2]
[380036978,1755493847996,-334.0385367,0.00013165,2]
[380036979,1755493848005,-13258.88704069,0.00013438,2]
[380036980,1755493848025,-1146.80112521,0.00013438,2]
[380036981,1755493848036,-262.08693345,0.00013438,2]
[380036982,1755493849244,-5871.1319314,0.00011678,2]
[380036983,1755493849348,-7931.15798612,0.00011678,2]
[380036984,1755493849386,-3966.66985748,0.00011678,2]
[380036985,1755493849795,-3726.040225,0.00011678,2]
[380036986,1755493849804,-442.41526589,0.00012523,2]
[380036987,1755493849814,-31173.56882367,0.00013438,2]
[380036988,1755493849823,-500.0,0.00013439,2]
[380036989,1755493849832,-729.0,0.00013439,2]
[380036990,1755493849842,-3454.0,0.00013439,2]
[380036991,1755493849851,-1622.0,0.00013439,2]
[380036992,1755493849860,-500.0,0.00013439,2]
[380036993,1755493849870,-989.0,0.00013439,2]
[380036994,1755493849879,-474.0,0.00013439,2]
[380036995,1755493849889,-18015.288663,0.00013439,2]
[380036996,1755493849898,-594.62395557,0.0001344,2]
[380036997,1755493849910,-644.59000975,0.0001344,2]
[380036998,1755493849959,-363.86,0.0001344,2]
[380036999,1755493856399,-151.1,9.724e-05,2]
[380037000,1755493884690,-3108.88,9.671e-05,2]
[380037001,1755493896645,-236.93915882,9.671e-05,2]
[380037002,1755493909105,-108.0,9.67e-05,2]
[380037003,1755493909128,-84.0,9.67e-05,2]
[380037004,1755493921188,-170.74,9.671e-05,2]
[380037005,1755493968418,-225.54258897,9.67e-05,2]
[380037006,1755494016159,-150.83776212,9.67e-05,2]
[380037007,1755494028807,-44.41152895,9.67e-05,2]
[380037008,1755494028846,-168.28492538,9.67e-05,2]
[380037009,1755494053462,-167.19077736,9.67e-05,2]
[380037010,1755494053768,-127.2392339,9.67e-05,2]
[380037011,1755494065124,-176.42956029,9.67e-05,2]
[380037012,1755494115266,-150.0,9.669e-05,2]
[380037013,1755494139437,-174.33117658,9.669e-05,2]
[380037014,1755494157981,-126.84799246,9.669e-05,2]
[380037015,1755494158472,-46.30401508,9.669e-05,2]
[380037016,1755494169797,-173.5006922,9.669e-05,2]
[380037017,1755494181623,-18.47610538,9.669e-05,2]
[380037018,1755494181673,-113.04778924,9.669e-05,2]
[380037019,1755494194197,-300.0,9.668e-05,2]
[380037020,1755494216140,1770.0,0.00024,120]
[380037021,1755494219340,-109.71156346,9.668e-05,2]
[380037022,1755494219374,-80.57687308,9.668e-05,2]
[380037023,1755494243371,-13.17543321,9.668e-05,2]
[380037024,1755494243569,-175.20100158,9.668e-05,2]
[380037025,1755494303537,-191.0195807,9.619e-05,2]
[380037026,1755494316580,-150.0,9.619e-05,2]
[380037027,1755494327531,-154.14,9.619e-05,2]
[380037028,1755494364928,-30.6163533,9.619e-05,2]
[380037029,1755494402068,-156.79809442,9.667e-05,2]
[380037030,1755494402710,-186.40381116,9.666e-05,2]
[380037031,1755494416124,-159.36220377,9.666e-05,2]
[380037032,1755494426083,-151.0,9.666e-05,2]
[380037033,1755494440185,-200.0,9.666e-05,2]
[380037034,1755494452158,-96.16247726,9.666e-05,2]
[380037035,1755494452220,-3.75504548,9.666e-05,2]
[380037036,1755494499988,-157.28432018,9.666e-05,2]
[380037037,1755494507434,-250.0,9.666e-05,2]
[380037038,1755494515395,-88.96063434,9.666e-05,2]
[380037039,1755494515451,-80.66873132,9.666e-05,2]
[380037040,1755494522391,-151.0,9.666e-05,2]
[380037041,1755494538871,-150.0,9.666e-05,2]
[380037042,1755494546918,-35.80873132,9.666e-05,2]
[380037043,1755494547373,-82.52253736,9.666e-05,2]
[380037044,1755494575029,-189.23228831,9.665e-05,2]
[380037045,1755494582550,-109.32344577,9.665e-05,2]
[380037046,1755494582634,-68.88428602,9.665e-05,2]
[380037047,1755494590946,-166.87320974,9.665e-05,2]
[380037048,1755494604465,-40.13226764,9.665e-05,2]
[380037049,1755494604629,-224.1102366,9.665e-05,2]
[380037050,1755494611140,-150.61251937,9.665e-05,2]
[380037051,1755494648095,-8.0667725,9.664e-05,2]
[380037052,1755494648126,-141.9332275,9.664e-05,2]
[380037058,1755494660478,-151.0,9.664e-05,2]
[380037060,1755494684909,-151.0,9.664e-05,2]
[380037061,1755494696945,-48.82089546,9.664e-05,2]
[380037062,1755494696976,-68.10032646,9.664e-05,2]
[380037063,1755494709840,-152.08,9.664e-05,2]
[380037064,1755494721327,-66.04285762,9.664e-05,2]
[380037065,1755494721383,-19.99428476,9.664e-05,2]
[380037066,1755494729761,-150.0,9.664e-05,2]
[380037068,1755494770153,-15.81889257,9.664e-05,2]
[380037069,1755494770186,-118.36221486,9.664e-05,2]
[380037070,1755494780840,-150.0,9.664e-05,2]
[380037072,1755494799857,-24.73923592,9.664e-05,2]
[380037073,1755494800103,-124.26076408,9.664e-05,2]
[380037074,1755494809584,-366.69540875,9.663e-05,2]
[380037075,1755494809607,-500.0,9.663e-05,2]
[380037076,1755494809628,-500.0,9.663e-05,2]
[380037077,1755494809648,-500.0,9.663e-05,2]
[380037078,1755494809670,-500.0,9.663e-05,2]
[380037079,1755494809691,-500.0,9.663e-05,2]
[380037080,1755494809711,-500.0,9.663e-05,2]
[380037081,1755494809732,-500.0,9.663e-05,2]
[380037082,1755494809753,-500.0,9.663e-05,2]
[380037083,1755494809773,-442.57948537,9.663e-05,2]
[380037084,1755494809793,-500.0,9.663e-05,2]
[380037085,1755494809816,-500.0,9.663e-05,2]
[380037086,1755494809837,-500.0,9.663e-05,2]
[380037087,1755494809858,-440.72510588,9.663e-05,2]
[380037088,1755494827982,-150.0,9.662e-05,2]
[380037089,1755494834678,-59.27489412,9.663e-05,2]
[380037090,1755494835691,-96.59113113,9.663e-05,2]
[380037091,1755494842027,-172.09176669,9.663e-05,2]
[380037092,1755494849486,-159.75260108,9.663e-05,2]
[380037093,1755494858376,-71.5645011,9.663e-05,2]
[380037094,1755494858831,-43.63609182,9.663e-05,2]
[380037095,1755494892068,-14.43811894,9.663e-05,2]
[380037096,1755494892401,-147.44038225,9.663e-05,2]
[380037097,1755494896837,50658.69107467,0.00012,30]
[380037098,1755494903856,-150.0,9.614e-05,2]
[380037103,1755494938753,-26.31662,9.614e-05,2]
[380037104,1755494951683,-304.50547226,9.669e-05,2]
[380037108,1755494987729,-195.35512668,9.62e-05,2]
[380037109,1755494993399,550.0,0.00024,120]
[380037111,1755495011615,-72.16851332,9.62e-05,2]
[380037112,1755495011653,-195.01272,9.669e-05,2]
[380037113,1755495024047,-19.56212637,9.669e-05,2]
[380037114,1755495024070,-114.86574726,9.669e-05,2]
[380037121,1755495031406,-1200.0,9.67e-05,2]
[380037122,1755495031416,-303.49984793,9.671e-05,2]
[380037140,1755495031941,-5954.20179962,9.671e-05,2]
[380037142,1755495031953,-11245.59069134,9.671e-05,2]
[380037144,1755495031962,-1427.58,9.804e-05,2]
[380037146,1755495031971,-3110.99,9.831e-05,2]
[380037148,1755495031980,-1300.6375231,0.00010052,2]
[380037150,1755495031990,-1000.0,0.00010059,2]
[380037152,1755495031999,-200.0,0.000101,3]
[380037154,1755495032010,-500.0,0.000102,3]
[380037156,1755495032019,-800.0,0.000103,3]
[380037158,1755495032029,-1100.0,0.000104,3]
[380037160,1755495032038,-1400.0,0.000105,3]
[380037162,1755495032050,-1000.0,0.00010523,2]
[380037164,1755495032065,-200.0,0.000106,3]
[380037166,1755495032075,-250.0,0.00010636,2]
[380037168,1755495032085,-1680.0,0.00010637,2]
[380037170,1755495032094,-250.0,0.00010664,2]
[380037172,1755495032104,-2164.30081032,0.0001067,2]
[380037174,1755495032113,-2164.30081033,0.0001067,2]
[380037176,1755495032122,-200.0,0.000107,3]
[380037178,1755495032131,-150.0,0.00010788,2]